bitfinex/quotes_SOLUSD_20250924
["timestamp","ask_amount","ask_price","bid_price","bid_amount"]
[1758731054345,2.14692022,214.38,214.33,41.16555493]
[1758731054346,2.50692022,214.38,214.33,41.16555493]
[1758731054575,0.36,214.37,214.33,41.16555493]
[1758731054767,0.36,214.36,214.33,41.16555493]
[1758731054943,0.36,214.35,214.31,4.66599679]
[1758731055149,0.36,214.34,214.32,36.5]
[1758731055458,2.14692022,214.35,214.29,2.14692022]
[1758731055656,0.36,214.33,214.3,36.5]
[1758731055848,0.36,214.34,214.3,36.5]
[1758731056650,0.36,214.34,214.3,41.16627397]
[1758731057358,0.36,214.34,214.3,4.66627397]
[1758731057668,0.36,214.34,214.28,0.72]
[1758731057669,0.36,214.33,214.31,36.5]
[1758731058262,0.36,214.33,214.27,6.81391486]
[1758731058263,0.36,214.32,214.27,6.81391486]
[1758731058464,2.14692022,214.32,214.28,36.5]
[1758731058842,2.50692022,214.31,214.28,36.5]
[1758731059073,0.36,214.31,214.28,36.5]
[1758731061672,2.14692022,214.26,214.2,6.8154543]
[1758731061972,2.14692022,214.25,214.21,36.5]
[1758731062273,2.14692022,214.28,214.22,39.36692022]
[1758731062572,26.0,214.29,214.23,4.66788031]
[1758731062767,28.14692022,214.29,214.23,4.66788031]
[1758731063153,2.14692022,214.28,214.23,4.66788031]
[1758731063348,2.14692022,214.28,214.23,5.38788031]
[1758731063765,2.14692022,214.26,214.23,36.5]
[1758731063962,2.14692022,214.27,214.23,37.22]
[1758731064163,2.14692022,214.28,214.23,36.5]
[1758731064359,2.14692022,214.27,214.23,36.5]
[1758731064766,2.14692022,214.27,214.23,41.16780267]
[1758731064962,2.14692022,214.27,214.23,41.88780267]
[1758731065271,2.14692022,214.27,214.23,36.5]
[1758731066276,2.14692022,214.26,214.23,36.5]
[1758731066470,4.66703479,214.27,214.2,4.66835265]
[1758731066471,2.14692022,214.24,214.2,4.66835265]
[1758731066678,2.14692022,214.24,214.19,0.72]
[1758731066679,2.14692022,214.23,214.19,0.72]
[1758731066852,2.14692022,214.23,214.19,41.88871328]
[1758731067162,2.14692022,214.25,214.2,0.72]
[1758731067569,26.0,214.27,214.21,2.86692022]
[1758731067768,26.0,214.27,214.22,2.86692022]
[1758731067966,26.0,214.27,214.23,0.72]
[1758731068484,2.14692022,214.28,214.24,0.72]
[1758731068782,2.14692022,214.28,214.23,4.6678276]
[1758731068962,0.36,214.33,214.24,2.86692022]
[1758731069282,0.36,214.37,214.28,2.14692022]
[1758731069602,42.18233625,214.35,214.3,2.14692022]
[1758731069768,42.18233625,214.35,214.3,2.86692022]
[1758731069973,42.18233625,214.35,214.3,0.72]
[1758731070170,28.14692022,214.35,214.3,0.72]
[1758731070375,0.36,214.37,214.3,2.86692022]
[1758731070557,2.50692022,214.37,214.31,2.14692022]
[1758731070751,2.50692022,214.37,214.32,4.66592011]
[1758731070966,2.14692022,214.36,214.3,7.53324213]
[1758731071576,31.02485895,214.37,214.3,7.53324213]
[1758731071882,2.14692022,214.36,214.3,7.53327075]
[1758731072090,32.81177917,214.37,214.31,2.14692022]
[1758731072261,28.14692022,214.37,214.31,2.86692022]
[1758731072457,26.0,214.37,214.31,2.86692022]
[1758731072653,32.81175767,214.37,214.31,2.86692022]
[1758731072880,0.36,214.39,214.32,0.72]
[1758731073059,2.14692022,214.37,214.32,0.72]
[1758731073258,2.14692022,214.37,214.33,0.72]
[1758731073670,2.14692022,214.36,214.33,0.72]
[1758731074270,2.14692022,214.36,214.3,4.66631858]
[1758731074586,2.14692022,214.36,214.31,0.72]
[1758731074783,5.02443865,214.39,214.31,0.72]
[1758731075082,2.14692022,214.36,214.31,0.72]
[1758731075390,2.14692022,214.35,214.29,37.22]
[1758731075568,2.14692022,214.34,214.29,37.22]
[1758731075766,2.14692022,214.35,214.3,0.72]
[1758731075966,2.14692022,214.35,214.29,36.5]
[1758731075967,2.14692022,214.35,214.31,0.72]
[1758731076482,6.81197348,214.36,214.31,0.72]
[1758731076668,6.81197348,214.36,214.32,0.72]
[1758731077065,134.6,214.35,214.3,4.66624739]
[1758731077265,2.14692022,214.38,214.33,0.72]
[1758731077459,26.0,214.39,214.34,0.72]
[1758731077788,2.14692022,214.39,214.34,0.72]
[1758731078083,28.14692022,214.39,214.34,0.72]
[1758731078780,134.6,214.43,214.35,4.66526708]
[1758731078971,141.41051229,214.43,214.36,0.72]
[1758731079162,167.41051229,214.43,214.36,0.72]
[1758731079580,2.14692022,214.42,214.36,0.72]
[1758731079974,2.14692022,214.41,214.36,0.72]
[1758731080292,2.14692022,214.39,214.33,36.5]
[1758731080472,2.14692022,214.39,214.33,37.22]
[1758731080678,2.14692022,214.39,214.34,0.72]
[1758731080993,6.8113871,214.39,214.35,0.72]
[1758731081168,6.8113871,214.39,214.36,0.72]
[1758731082495,2.14692022,214.37,214.31,0.72]
[1758731082697,134.6,214.36,214.31,37.22]
[1758731082996,2.14692022,214.35,214.31,0.72]
[1758731083302,2.14692022,214.34,214.29,0.72]
[1758731083671,2.14692022,214.33,214.3,0.72]
[1758731084696,3.35779967,214.33,214.3,0.72]
[1758731085501,30.6655476,214.34,214.26,4.66717104]
[1758731085690,3.35779967,214.32,214.27,0.72]
[1758731085893,3.35779967,214.32,214.28,0.72]
[1758731086278,3.35779967,214.32,214.29,0.72]
[1758731086597,8.02383231,214.32,214.26,41.14717104]
[1758731086776,8.02383231,214.32,214.27,0.72]
[1758731086985,8.02383231,214.32,214.28,0.72]
[1758731087295,3.35779967,214.3,214.24,0.72]
[1758731087484,3.35779967,214.3,214.24,37.2]
[1758731087796,3.35779967,214.3,214.25,0.72]
[1758731088000,3.35779967,214.29,214.26,0.72]
[1758731088299,134.6,214.28,214.26,0.72]
[1758731088501,142.62459678,214.28,214.24,0.72]
[1758731088702,8.02459678,214.28,214.24,0.72]
[1758731089000,4.66679711,214.28,214.24,0.72]
[1758731089505,8.02438792,214.29,214.25,0.72]
[1758731089705,3.35779967,214.29,214.26,0.72]
[1758731090203,8.02437799,214.29,214.26,0.72]
[1758731090501,3.35779967,214.29,214.26,0.72]
[1758731090686,8.02442459,214.29,214.26,0.72]
[1758731090871,3.35779967,214.28,214.24,0.67]
[1758731091075,3.35779967,214.28,214.25,0.67]
[1758731093281,8.02468693,214.28,214.25,0.67]
[1758731093472,3.35779967,214.28,214.25,0.67]
[1758731094087,8.0244154,214.29,214.25,0.67]
[1758731094291,134.6,214.28,214.25,0.67]
[1758731094696,137.95779967,214.28,214.25,0.67]
[1758731095994,142.62460781,214.28,214.25,0.67]
[1758731096382,137.95779967,214.28,214.25,0.67]
[1758731097716,142.62465779,214.28,214.25,0.67]
[1758731097911,137.95779967,214.28,214.25,0.67]
[1758731098813,142.6246009,214.28,214.25,0.67]
[1758731099017,137.95779967,214.28,214.25,0.67]
[1758731100112,142.62466878,214.28,214.25,0.67]
[1758731100318,3.35779967,214.26,214.21,12.02480029]
[1758731100638,3.35779967,214.22,214.16,5.33934771]
[1758731100929,3.35779967,214.21,214.17,0.67]
[1758731101130,4.66788031,214.23,214.18,0.67]
[1758731101319,3.35779967,214.21,214.18,0.67]
[1758731101724,3.35779967,214.22,214.18,5.3389599]
[1758731101929,3.35779967,214.22,214.19,0.67]
[1758731102126,134.6,214.25,214.2,0.67]
[1758731102333,134.6,214.25,214.22,3.35779967]
[1758731102549,0.36,214.35,214.24,3.35779967]
[1758731102719,3.71779967,214.35,214.28,3.35779967]
[1758731102921,3.35779967,214.34,214.28,4.02779967]
[1758731103447,8.02343127,214.34,214.28,8.69453526]
[1758731104045,4.6656316,214.34,214.28,5.33673559]
[1758731104334,3.35779967,214.32,214.26,4.66703461]
[1758731104527,3.35779967,214.33,214.27,40.50779967]
[1758731104734,3.35779967,214.33,214.28,0.67]
[1758731104918,3.35779967,214.33,214.27,39.83779967]
[1758731105118,3.35779967,214.33,214.28,0.67]
[1758731105339,8.02363683,214.33,214.27,44.50476214]
[1758731105640,3.35779967,214.32,214.26,39.83779967]
[1758731105837,3.35779967,214.32,214.26,40.50779967]
[1758731106823,3.35779967,214.32,214.26,37.15]
[1758731107039,8.0239199,214.32,214.26,0.67]
[1758731107240,4.66573714,214.33,214.26,8.6950114]
[1758731107544,29.35779967,214.35,214.29,3.35779967]
[1758731107731,134.6,214.34,214.29,4.02779967]
[1758731107934,134.6,214.34,214.3,0.67]
[1758731108940,134.6,214.34,214.31,0.67]
[1758731109332,134.6,214.34,214.29,5.33656037]
[1758731109533,134.6,214.34,214.3,0.67]
[1758731110236,134.6,214.34,214.26,11.66806683]
[1758731110237,0.36,214.39,214.31,0.67]
[1758731110436,3.35779967,214.37,214.31,0.67]
[1758731110620,29.35779967,214.37,214.31,5.33609107]
[1758731110824,29.35779967,214.37,214.31,4.66609107]
[1758731111043,26.0,214.37,214.32,0.67]
[1758731111247,8.38274061,214.37,214.31,3.35779967]
[1758731111450,34.02274061,214.37,214.31,3.35779967]
[1758731111640,34.02274061,214.37,214.31,4.02779967]
[1758731112182,30.66494094,214.37,214.31,4.02779967]
[1758731112858,3.35779967,214.32,214.27,14.02885267]
[1758731113063,3.71779967,214.31,214.21,48.15058156]
[1758731113274,3.35779967,214.29,214.24,0.67]
[1758731113635,3.35779967,214.26,214.21,0.67]
[1758731113956,3.35779967,214.26,214.22,0.67]
[1758731114341,0.36,214.34,214.23,3.35779967]
[1758731114547,53.24677369,214.37,214.24,0.67]
[1758731114548,26.0,214.3,214.24,0.67]
[1758731114735,34.02422265,214.3,214.24,4.02779967]
[1758731114942,34.02422265,214.3,214.25,0.67]
[1758731115141,30.66642298,214.3,214.25,0.67]
[1758731115461,34.02422265,214.3,214.25,0.67]
[1758731115761,3.35779967,214.28,214.26,0.67]
[1758731115965,3.35779967,214.29,214.26,0.67]
[1758731116168,0.36,214.38,214.28,3.35779967]
[1758731116343,0.36,214.38,214.29,4.02779967]
[1758731116344,4.66483183,214.37,214.29,4.02779967]
[1758731116544,26.0,214.34,214.29,0.67]
[1758731116749,30.66548479,214.34,214.3,0.67]
[1758731116967,26.0,214.34,214.31,0.67]
[1758731117673,28.78,214.39,214.32,4.02779967]
[1758731117846,3.35779967,214.4,214.33,4.02779967]
[1758731118048,48.23887005,214.43,214.29,16.33295497]
[1758731118049,26.0,214.39,214.34,3.35779967]
[1758731118288,3.35779967,214.41,214.35,0.67]
[1758731118458,11.13118624,214.42,214.35,4.02779967]
[1758731118660,8.02154372,214.42,214.36,4.02779967]
[1758731118975,30.66374405,214.42,214.37,0.67]
[1758731119276,30.66374405,214.42,214.38,0.67]
[1758731119473,134.6,214.41,214.29,11.6660795]
[1758731119712,134.6,214.4,214.35,3.35779967]
[1758731119879,134.6,214.39,214.36,0.67]
[1758731120250,134.6,214.39,214.37,0.67]
[1758731120657,134.6,214.39,214.38,0.67]
[1758731121273,134.6,214.39,214.35,3.35779967]
[1758731121546,134.6,214.39,214.32,11.66464514]
[1758731121547,139.26440269,214.39,214.33,4.02779967]
[1758731121961,134.6,214.39,214.33,8.69339869]
[1758731122275,134.6,214.39,214.34,3.35779967]
[1758731122480,134.6,214.39,214.35,0.67]
[1758731122669,134.6,214.39,214.36,0.67]
[1758731122975,134.6,214.39,214.34,3.35779967]
[1758731123151,134.6,214.39,214.34,4.02779967]
[1758731123566,134.6,214.39,214.34,3.35779967]
[1758731123777,134.6,214.39,214.35,0.67]
[1758731124374,134.6,214.39,214.34,3.35779967]
[1758731124573,137.95779967,214.39,214.34,0.67]
[1758731125254,142.62224336,214.39,214.32,4.02779967]
[1758731125458,142.62224336,214.39,214.31,4.66594146]
[1758731125459,3.35779967,214.37,214.31,3.35779967]
[1758731126479,138.31779967,214.36,214.29,4.66637421]
[1758731126679,137.95779967,214.35,214.29,3.35779967]
[1758731126979,134.96,214.35,214.25,4.02779967]
[1758731127161,8.02398489,214.31,214.25,4.02779967]
[1758731127494,8.02398489,214.31,214.22,16.33798851]
[1758731127495,3.35779967,214.29,214.22,5.33809821]
[1758731127653,3.35779967,214.29,214.22,4.02779967]
[1758731127859,3.35779967,214.29,214.23,3.35779967]
[1758731128164,36.5,214.36,214.25,3.35779967]
[1758731128165,26.0,214.33,214.25,3.35779967]
[1758731128366,3.35779967,214.31,214.25,0.67]
[1758731128557,3.35779967,214.3,214.25,0.67]
[1758731129373,4.66679111,214.28,214.22,4.02779967]
[1758731129689,8.02459078,214.28,214.22,5.33808359]
[1758731130070,3.35779967,214.27,214.2,8.02623409]
[1758731130381,3.35779967,214.27,214.2,8.69623409]
[1758731130683,3.35779967,214.26,214.2,0.67]
[1758731130859,3.35779967,214.21,214.16,0.67]
[1758731131254,3.35779967,214.21,214.15,7.10974996]
[1758731131479,3.35779967,214.21,214.15,7.77974996]
[1758731131694,8.02620126,214.21,214.15,7.77974996]
[1758731131864,8.02620126,214.21,214.15,3.11013948]
[1758731132600,3.35779967,214.21,214.15,7.77975302]
[1758731132889,3.35779967,214.21,214.15,3.11013948]
[1758731133083,3.35779967,214.18,214.11,5.3403251]
[1758731133278,3.35779967,214.17,214.11,8.69812477]
[1758731133463,3.35779967,214.17,214.12,0.67]
[1758731133662,3.35779967,214.17,214.13,0.67]
[1758731134163,3.35779967,214.2,214.14,0.67]
[1758731135178,3.35779967,214.19,214.14,0.67]
[1758731135365,3.35779967,214.19,214.14,5.33982371]
[1758731135760,3.35779967,214.19,214.14,0.67]
[1758731136258,3.35779967,214.18,214.14,0.67]
[1758731136658,3.35779967,214.17,214.11,0.67]
[1758731136980,3.35779967,214.15,214.1,0.2]
[1758731137375,3.35779967,214.15,214.1,5.54069615]
[1758731138081,3.71779967,214.17,214.11,0.67]
[1758731138271,3.35779967,214.17,214.11,0.67]
[1758731139069,26.0,214.19,214.13,3.35779967]
[1758731139274,26.0,214.19,214.15,4.66962409]
[1758731139667,134.6,214.2,214.15,5.33962409]
[1758731140064,134.6,214.2,214.15,8.02742376]
[1758731140268,134.6,214.2,214.16,0.67]
[1758731140676,134.6,214.2,214.15,8.02742376]
[1758731140677,134.6,214.2,214.15,4.66962409]
[1758731140886,134.6,214.2,214.15,5.33962409]
[1758731141182,137.95779967,214.2,214.15,4.66962409]
[1758731141387,3.71779967,214.19,214.14,4.66984215]
[1758731141768,3.35779967,214.19,214.14,4.66984215]
[1758731142081,139.26854835,214.2,214.14,5.33984215]
[1758731142082,3.35779967,214.18,214.14,5.33984215]
[1758731142410,3.35779967,214.18,214.1,26.2]
[1758731142568,139.26854835,214.2,214.1,26.2]
[1758731142569,134.96,214.17,214.1,0.2]
[1758731142771,3.35779967,214.14,214.1,0.2]
[1758731143093,3.35779967,214.15,214.1,0.87]
[1758731143470,3.35779967,214.15,214.1,5.54067898]
[1758731144885,3.35779967,214.15,214.1,4.87071366]
[1758731145076,3.35779967,214.16,214.11,0.67]
[1758731145279,137.95779967,214.17,214.12,0.67]
[1758731145871,3.35779967,214.16,214.12,0.67]
[1758731146473,134.6,214.17,214.13,4.02779967]
[1758731146671,134.6,214.17,214.14,2.82178306]
[1758731146893,36.94,214.23,214.16,2.15178306]
[1758731146894,2.15178306,214.23,214.16,2.15178306]
[1758731147209,0.36,214.27,214.19,2.15178306]
[1758731147366,2.15178306,214.26,214.19,2.15178306]
[1758731147698,0.36,214.27,214.2,4.66853408]
[1758731147871,2.15178306,214.28,214.21,2.15178306]
[1758731148067,2.15178306,214.28,214.21,2.82178306]
[1758731148593,5.29422556,214.28,214.21,5.96422556]
[1758731148791,5.29422556,214.27,214.21,0.67]
[1758731149478,5.65422556,214.28,214.22,4.66809821]
[1758731149795,41.87422556,214.29,214.22,9.96232377]
[1758731150501,26.0,214.3,214.23,5.29422556]
[1758731150708,5.29422556,214.32,214.25,5.29422556]
[1758731150872,31.29422556,214.29,214.24,0.67]
[1758731151079,31.65422556,214.29,214.22,9.96232377]
[1758731151487,9.9612779,214.27,214.21,4.66830008]
[1758731151686,5.29422556,214.27,214.21,9.96252564]
[1758731152288,10.32103507,214.28,214.21,9.96252564]
[1758731152598,139.89422556,214.27,214.21,4.66830008]
[1758731152796,5.29422556,214.26,214.21,4.66830008]
[1758731153096,5.29422556,214.26,214.21,5.37830008]
[1758731154702,144.56125057,214.27,214.21,5.37830008]
[1758731154904,139.89422556,214.27,214.21,5.37830008]
[1758731155288,134.6,214.27,214.22,5.29422556]
[1758731155478,134.6,214.27,214.24,5.29422556]
[1758731155679,134.6,214.27,214.25,0.71]
[1758731155893,134.6,214.27,214.25,5.37731314]
[1758731157697,134.6,214.27,214.26,6.00422556]
[1758731157894,134.6,214.27,214.26,10.67145229]
[1758731158202,134.6,214.33,214.26,22.33951912]
[1758731158387,134.6,214.33,214.3,5.29422556]
[1758731158585,134.6,214.33,214.27,0.71]
[1758731158586,134.6,214.33,214.28,5.29422556]
[1758731158785,134.6,214.33,214.26,16.33529356]
[1758731158786,140.25422556,214.33,214.27,5.29422556]
[1758731159889,144.91995777,214.33,214.27,9.96108502]
[1758731160092,144.91995777,214.33,214.27,4.66685946]
[1758731160980,140.25422556,214.33,214.27,4.66685946]
[1758731161402,134.6,214.33,214.31,5.29422556]
[1758731161587,134.6,214.33,214.32,0.67]
[1758731161911,134.6,214.33,214.32,5.96422556]
[1758731162111,134.6,214.33,214.32,10.63014567]
[1758731164111,36.31870571,214.39,214.32,10.63014567]
[1758731164409,5.29422556,214.4,214.33,5.29422556]
[1758731164584,36.54,214.41,214.35,5.29422556]
[1758731164787,31.29422556,214.42,214.35,5.96422556]
[1758731164987,5.29422556,214.41,214.35,0.67]
[1758731166292,5.29422556,214.41,214.36,4.66504944]
[1758731166491,5.65422556,214.41,214.36,4.66504944]
[1758731166694,5.65422556,214.41,214.36,5.33504944]
[1758731166695,26.0,214.41,214.36,5.33504944]
[1758731168399,26.36,214.41,214.36,4.66504944]
[1758731168610,26.0,214.41,214.36,5.33504944]
[1758731169821,26.36,214.41,214.36,0.67]
[1758731170024,26.36,214.41,214.36,5.33504723]
[1758731170325,26.0,214.41,214.36,5.33504723]
[1758731171025,26.36,214.41,214.36,4.66504723]
[1758731171231,26.0,214.41,214.36,5.33504723]
[1758731171719,26.36,214.41,214.36,5.33504723]
[1758731171926,26.0,214.41,214.36,5.33504723]
[1758731172824,32.811495,214.41,214.34,2.14746643]
[1758731173012,33.171495,214.41,214.34,2.14746643]
[1758731173599,28.50746643,214.41,214.34,2.14746643]
[1758731173801,26.36,214.41,214.35,2.14746643]
[1758731174431,134.6,214.4,214.38,2.14746643]
[1758731174638,134.6,214.4,214.39,2.81746643]
[1758731174808,134.6,214.4,214.39,7.48186309]
[1758731175203,134.6,214.4,214.39,2.81746643]
[1758731175408,134.6,214.4,214.38,6.81204237]
[1758731175808,134.6,214.4,214.38,7.48204237]
[1758731176527,134.6,214.4,214.38,4.66457594]
[1758731177404,0.36,214.39,214.33,41.81570242]
[1758731177622,134.6,214.38,214.34,2.14746643]
[1758731177828,134.6,214.38,214.34,2.81746643]
[1758731178509,134.6,214.38,214.34,7.48284859]
[1758731179829,134.6,214.38,214.35,7.48268915]
[1758731180506,134.6,214.37,214.31,0.67]
[1758731180713,134.96,214.36,214.3,4.66635557]
[1758731180926,134.96,214.36,214.3,6.813822]
[1758731181233,28.50746643,214.35,214.28,6.81417322]
[1758731181527,2.50746643,214.34,214.27,6.8144384]
[1758731182025,26.36,214.34,214.27,6.8144384]
[1758731182240,26.36,214.34,214.28,2.14746643]
[1758731183443,31.02549632,214.34,214.28,6.81407056]
[1758731183739,33.17296275,214.34,214.28,4.66660413]
[1758731184124,2.14746643,214.32,214.25,2.14746643]
[1758731184338,2.14746643,214.31,214.25,2.14746643]
[1758731184633,2.50746643,214.32,214.25,2.14746643]
[1758731185337,7.1735088,214.32,214.26,4.66722673]
[1758731185633,7.1735088,214.32,214.26,6.81469316]
[1758731186108,2.50746643,214.32,214.26,6.81469316]
[1758731186438,0.36,214.32,214.26,6.81469316]
[1758731187433,5.02596473,214.32,214.26,6.81469316]
[1758731187617,7.17343116,214.32,214.26,6.81469316]
[1758731187822,0.36,214.31,214.26,2.14746643]
[1758731188130,6.81343116,214.32,214.26,6.81465053]
[1758731188340,2.14746643,214.29,214.22,7.53541073]
[1758731188544,28.14746643,214.29,214.22,6.81541073]
[1758731188845,0.36,214.28,214.22,6.81541073]
[1758731189433,134.6,214.28,214.23,2.14746643]
[1758731189825,134.6,214.28,214.26,2.14746643]
[1758731190129,134.6,214.28,214.27,0.72]
[1758731190447,134.6,214.28,214.27,2.86746643]
[1758731190635,136.74746643,214.36,214.27,2.86746643]
[1758731190947,134.6,214.35,214.29,2.14746643]
[1758731191133,134.6,214.35,214.29,2.86746643]
[1758731191442,134.6,214.35,214.25,26.0]
[1758731191443,134.6,214.35,214.31,4.66613783]
[1758731192515,134.6,214.35,214.3,7.53378943]
[1758731192716,134.96,214.35,214.3,4.666323]
[1758731194243,134.96,214.35,214.3,7.53378943]
[1758731194631,134.6,214.34,214.3,7.53378943]
[1758731195919,0.36,214.33,214.28,7.53413812]
[1758731196223,134.6,214.34,214.29,5.38642003]
[1758731196530,139.62562801,214.34,214.28,2.14746643]
[1758731196741,0.36,214.33,214.27,7.53427168]
[1758731197255,0.36,214.33,214.28,2.14746643]
[1758731197847,0.36,214.33,214.28,5.38677816]
[1758731198143,134.6,214.32,214.28,7.53424459]
[1758731199950,134.6,214.32,214.27,2.14746643]
[1758731200244,139.26606798,214.32,214.27,7.53432843]
[1758731200464,134.96,214.32,214.27,7.53432843]
[1758731200658,134.6,214.32,214.27,7.53432843]
[1758731200947,139.62597068,214.32,214.27,7.53432843]
[1758731202026,134.6,214.32,214.27,6.81432843]
[1758731202228,134.6,214.32,214.27,7.53432843]
[1758731202955,134.96,214.32,214.27,7.53432843]
[1758731203163,134.96,214.32,214.27,5.386862]
[1758731203457,134.96,214.32,214.27,0.72]
[1758731203640,139.26598262,214.32,214.25,7.53487682]
[1758731203825,0.36,214.31,214.25,5.38741039]
[1758731204034,141.773822,214.3,214.23,2.14746643]
[1758731204230,136.74746643,214.29,214.23,4.66767379]
[1758731204550,137.10746643,214.29,214.22,2.14746643]
[1758731205255,2.50746643,214.28,214.22,4.66805509]
[1758731205642,134.6,214.29,214.2,2.14746643]
[1758731205643,2.50746643,214.27,214.2,2.14746643]
[1758731205846,134.6,214.26,214.21,2.14746643]
[1758731206052,134.6,214.26,214.22,4.66809821]
[1758731206629,134.6,214.26,214.22,5.38809821]
[1758731207149,138.32002686,214.26,214.22,4.66809821]
[1758731207333,0.36,214.25,214.2,4.668319]
[1758731207841,3.72002686,214.25,214.2,5.388319]
[1758731208050,3.36002686,214.23,214.19,2.43904875]
[1758731208242,3.36002686,214.21,214.16,4.66940605]
[1758731208424,3.36002686,214.21,214.17,0.72]
[1758731208628,3.36002686,214.21,214.16,4.66940605]
[1758731208629,3.72002686,214.21,214.16,4.66940605]
[1758731208830,26.0,214.21,214.14,3.36002686]
[1758731209028,3.72002686,214.2,214.14,5.38984215]
[1758731209249,3.36002686,214.19,214.14,5.38984215]
[1758731209657,3.36002686,214.19,214.15,0.72]
[1758731209962,3.36002686,214.2,214.16,0.72]
[1758731210346,3.36002686,214.19,214.16,0.72]
[1758731211049,3.36002686,214.19,214.15,4.66943844]
[1758731211355,3.36002686,214.19,214.15,5.34943844]
[1758731211662,3.36002686,214.19,214.15,0.68]
[1758731212850,3.36002686,214.2,214.16,4.66940605]
[1758731213362,3.72002686,214.2,214.16,4.66940605]
[1758731214262,3.36002686,214.18,214.14,4.66963155]
[1758731214433,137.96002686,214.17,214.12,5.35027786]
[1758731214635,3.36002686,214.16,214.12,5.35027786]
[1758731214845,3.36002686,214.15,214.11,4.67046835]
[1758731215043,3.36002686,214.15,214.11,5.35046835]
[1758731215239,3.36002686,214.15,214.1,0.2]
[1758731215443,3.36002686,214.13,214.1,0.2]
[1758731216044,137.96002686,214.14,214.1,5.55070415]
[1758731216540,3.36002686,214.13,214.1,5.55070415]
[1758731216967,3.36002686,214.11,214.1,0.2]
[1758731217342,3.36002686,214.12,214.1,0.2]
[1758731219352,3.36002686,214.13,214.1,0.2]
[1758731220065,134.6,214.14,214.1,0.2]
[1758731220363,134.6,214.14,214.11,0.69]
[1758731220551,134.6,214.14,214.13,3.36002686]
[1758731220752,134.6,214.14,214.13,4.05002686]
[1758731220954,134.6,214.14,214.13,0.69]
[1758731221152,134.6,214.14,214.11,4.05002686]
[1758731221351,134.6,214.14,214.12,0.69]
[1758731221663,11.67037876,214.22,214.1,16.54746228]
[1758731221664,134.6,214.21,214.13,4.05002686]
[1758731221853,3.36002686,214.23,214.17,3.36002686]
[1758731222042,3.36002686,214.23,214.17,4.05002686]
[1758731222243,39.86002686,214.24,214.18,4.66897002]
[1758731222450,3.36002686,214.25,214.19,0.69]
[1758731222649,3.36002686,214.26,214.19,4.05002686]
[1758731222962,29.36002686,214.25,214.19,0.69]
[1758731223164,3.36002686,214.25,214.19,0.69]
[1758731223364,29.36002686,214.25,214.19,0.69]
[1758731223670,29.36002686,214.25,214.16,4.66919849]
[1758731223671,29.36002686,214.22,214.16,4.66919849]
[1758731224055,3.36002686,214.21,214.16,4.66919849]
[1758731224259,3.72002686,214.21,214.16,4.66919849]
[1758731224581,29.36002686,214.22,214.17,0.69]
[1758731224881,29.36002686,214.22,214.18,3.36002686]
[1758731224882,26.0,214.22,214.18,3.36002686]
[1758731225168,36.5,214.25,214.19,4.05002686]
[1758731225357,65.86002686,214.25,214.19,0.69]
[1758731225550,3.36002686,214.24,214.19,0.69]
[1758731225746,3.36002686,214.24,214.16,16.34271361]
[1758731225951,3.36002686,214.24,214.17,4.05002686]
[1758731226152,3.36002686,214.22,214.16,8.02922535]
[1758731226351,8.02813314,214.22,214.16,4.66919849]
[1758731226772,34.02813314,214.22,214.15,8.71948299]
[1758731226955,3.36002686,214.2,214.15,4.66945613]
[1758731227149,3.36002686,214.2,214.15,5.35945613]
[1758731227348,0.36,214.21,214.16,0.69]
[1758731227560,3.72002686,214.21,214.16,0.69]
[1758731227885,8.38837425,214.21,214.16,0.69]
[1758731228548,8.38837425,214.21,214.14,8.71985159]
[1758731229063,26.0,214.22,214.15,4.05002686]
[1758731229272,29.36002686,214.22,214.15,4.05002686]
[1758731229862,29.36002686,214.22,214.17,4.66918802]
[1758731230055,29.72002686,214.22,214.17,5.35918802]
[1758731230361,34.38815759,214.22,214.17,5.35918802]
[1758731230571,34.02813379,214.22,214.17,5.35918802]
[1758731230771,134.6,214.21,214.17,5.35918802]